bitfinex/quotes_SOLUSD_20241123
["timestamp","ask_amount","ask_price","bid_price","bid_amount"]
[1732387802848,7.59968594,255.95,255.87,7.59968594]
[1732387803233,7.59968594,255.95,255.88,20.0]
[1732387805249,7.59968594,255.91,255.87,20.0]
[1732387807344,29.8452,256.04,255.87,20.0]
[1732387807543,7.59968594,255.92,255.87,20.0]
[1732387809241,7.59968594,255.92,255.86,29.67734071]
[1732387809557,23.776884,256.03,255.87,20.0]
[1732387809742,7.59968594,255.92,255.87,20.0]
[1732387810970,7.59968594,255.9,255.87,20.0]
[1732387811850,23.776884,256.01,255.87,20.0]
[1732387812049,7.59968594,255.91,255.87,20.0]
[1732387813366,7.59968594,255.9,255.87,20.0]
[1732387814835,23.776884,256.01,255.87,20.0]
[1732387814836,7.59968594,255.92,255.87,20.0]
[1732387818663,7.59968594,255.94,255.87,20.0]
[1732387819946,6.437,256.06,255.89,20.0]
[1732387820241,7.59968594,255.97,255.89,20.0]
[1732387821351,7.59968594,255.95,255.89,20.0]
[1732387822562,7.59968594,255.93,255.89,20.0]
[1732387823671,7.59968594,255.95,255.89,20.0]
[1732387826261,7.59968594,256.0,255.93,20.0]
[1732387826944,7.59968594,256.0,255.91,23.776884]
[1732387826945,7.59968594,255.98,255.91,20.0]
[1732387827163,7.59968594,255.98,255.89,20.0]
[1732387830657,7.59968594,255.98,255.91,20.0]
[1732387831163,7.59968594,255.99,255.91,20.0]
[1732387831361,7.59968594,255.97,255.89,20.0]
[1732387835185,7.59968594,255.99,255.91,20.0]
[1732387841061,7.59968594,255.97,255.91,20.0]
[1732387841766,7.59968594,255.97,255.91,27.61444944]
[1732387842967,7.59968594,255.99,255.91,27.61444944]
[1732387845592,23.776884,256.09,255.91,27.61444944]
[1732387845772,7.59968594,255.99,255.91,27.61444944]
[1732387845974,23.776884,256.09,255.91,27.61444944]
[1732387846179,7.59968594,255.99,255.91,27.61444944]
[1732387847973,7.59968594,255.95,255.91,27.61444944]
[1732387849185,7.59968594,255.97,255.91,27.61444944]
[1732387849386,7.59968594,255.95,255.91,27.61444944]
[1732387849577,7.59968594,255.95,255.87,24.42232108]
[1732387850580,7.59968594,255.95,255.87,4.42232108]
[1732387851568,7.59968594,255.95,255.87,12.02200702]
[1732387851781,7.59968594,255.97,255.87,19.66792641]
[1732387851980,7.59968594,255.97,255.89,7.59968594]
[1732387852188,7.59968594,255.99,255.89,7.59968594]
[1732387853982,30.212184,256.09,255.89,7.59968594]
[1732387854182,7.59968594,255.98,255.89,7.59968594]
[1732387856284,10.0,256.08,255.91,7.59968594]
[1732387856588,7.59968594,255.98,255.89,7.59968594]
[1732387857091,7.59968594,255.98,255.9,20.0]
[1732387858265,7.59968594,255.98,255.89,7.59968594]
[1732387859273,7.59968594,255.98,255.89,11.49268594]
[1732387859474,10.0,256.08,255.89,11.49268594]
[1732387859688,40.212184,256.09,255.89,11.49268594]
[1732387859894,7.59968594,255.98,255.89,11.49268594]
[1732387860189,30.212184,256.09,255.89,7.59968594]
[1732387860399,7.59968594,255.99,255.89,11.49268594]
[1732387860691,30.212184,256.09,255.93,7.59968594]
[1732387860692,6.4353,256.09,255.93,7.59968594]
[1732387860882,7.59968594,256.02,255.93,7.59968594]
[1732387861795,7.59968594,256.02,255.94,20.0]
[1732387862381,7.59968594,256.0,255.94,20.0]
[1732387862697,7.59968594,256.0,255.93,20.0]
[1732387863190,6.4353,256.09,255.93,20.0]
[1732387863191,23.776884,256.08,255.93,20.0]
[1732387863403,7.59968594,256.01,255.93,20.0]
[1732387863571,20.0,256.09,255.95,15.6875]
[1732387863985,7.59968594,256.03,255.95,15.6875]
[1732387864187,7.59968594,256.03,255.96,20.0]
[1732387865167,7.59968594,256.01,255.95,15.6875]
[1732387865366,7.59968594,255.99,255.95,15.6875]
[1732387865967,7.59968594,255.97,255.92,20.0]
[1732387866170,7.59968594,255.95,255.92,20.0]
[1732387866367,7.59968594,255.95,255.89,15.6875]
[1732387866977,7.59968594,255.93,255.89,15.6875]
[1732387867494,7.59968594,255.95,255.89,15.6875]
[1732387867673,10.0,256.04,255.89,15.6875]
[1732387867674,23.776884,256.03,255.89,15.6875]
[1732387867873,7.59968594,255.93,255.85,19.97986826]
[1732387868097,7.59968594,255.93,255.85,13.86838594]
[1732387868293,7.59968594,255.93,255.85,19.97986826]
[1732387868605,7.59968594,255.93,255.86,20.0]
[1732387870206,7.59968594,255.91,255.85,20.0]
[1732387870503,30.39874376,255.97,255.83,21.33438232]
[1732387870504,7.59968594,255.87,255.83,21.33438232]
[1732387870675,7.59968594,255.85,255.81,6.11148232]
[1732387871006,7.59968594,255.85,255.8,6.11148232]
[1732387871292,7.59968594,255.85,255.79,12.39148232]
[1732387871667,7.59968594,255.85,255.79,6.28]
[1732387872806,9.8452,255.98,255.83,7.59968594]
[1732387873090,7.59968594,255.9,255.83,7.59968594]
[1732387874380,7.59968594,255.9,255.81,27.59968594]
[1732387874697,7.59968594,255.88,255.81,20.0]
[1732387876623,7.59968594,255.86,255.81,20.0]
[1732387876802,7.59968594,255.86,255.8,4.85565442]
[1732387877191,7.59968594,255.84,255.78,20.0]
[1732387879181,7.59968594,255.84,255.77,20.0]
[1732387880001,7.59968594,255.82,255.77,20.0]
[1732387880186,7.59968594,255.82,255.76,15.2229]
[1732387880383,7.59968594,255.82,255.74,4.85565442]
[1732387880594,7.59968594,255.8,255.74,4.85565442]
[1732387880915,7.59968594,255.78,255.71,7.65603723]
[1732387881076,7.59968594,255.78,255.7,20.12494419]
[1732387882297,7.59968594,255.82,255.73,7.59968594]
[1732387882801,7.59968594,255.84,255.75,7.59968594]
[1732387884795,7.59968594,255.82,255.73,12.45534036]
[1732387885113,7.59968594,255.8,255.71,20.0]
[1732387885308,19.8452,255.89,255.71,20.0]
[1732387885309,7.59968594,255.78,255.71,20.0]
[1732387890020,7.59968594,255.8,255.72,7.59968594]
[1732387890194,9.8452,255.89,255.75,20.0]
[1732387890387,7.59968594,255.83,255.75,20.0]
[1732387890887,7.59968594,255.81,255.75,20.0]
[1732387891099,9.8452,255.89,255.74,20.0]
[1732387891100,7.59968594,255.79,255.74,20.0]
[1732387891816,7.59968594,255.79,255.73,24.90204419]
[1732387892415,7.59968594,255.79,255.71,20.0]
[1732387893317,7.59968594,255.79,255.72,7.59968594]
[1732387893697,7.59968594,255.79,255.73,20.0]
[1732387893894,7.59968594,255.81,255.73,20.0]
[1732387899021,7.59968594,255.79,255.73,20.0]
[1732387899219,0.35112836,255.79,255.73,20.0]
[1732387899513,7.59968594,255.91,255.87,137.8]
[1732387899716,7.59968594,255.89,255.82,20.0]
[1732387900409,7.59968594,255.89,255.8,20.0]
[1732387904102,7.59968594,255.89,255.8,23.893]
[1732387904499,7.59968594,255.89,255.8,31.63048377]
[1732387905420,7.59968594,255.91,255.83,7.59968594]
[1732387905626,19.8452,256.02,255.86,20.0]
[1732387905627,9.8452,256.02,255.86,20.0]
[1732387905925,7.59968594,255.93,255.86,20.0]
[1732387907117,7.59968594,255.93,255.84,3.893]
[1732387907321,7.59968594,255.93,255.84,23.893]
[1732387907507,7.59968594,255.95,255.86,20.0]
[1732387910714,7.59968594,255.93,255.86,20.0]
[1732387911308,7.59968594,255.91,255.85,20.0]
[1732387912024,7.59968594,255.93,255.85,20.0]
[1732387912424,7.59968594,255.93,255.85,27.59968594]
[1732387912835,23.776884,256.01,255.85,27.59968594]
[1732387913130,7.59968594,255.94,255.85,27.59968594]
[1732387914329,7.59968594,255.94,255.86,3.893]
[1732387914508,7.59968594,255.94,255.85,27.59968594]
[1732387917016,7.59968594,255.92,255.85,27.59968594]
[1732387917713,23.776884,256.01,255.85,27.59968594]
[1732387917911,7.59968594,255.93,255.85,27.59968594]
[1732387921916,7.59968594,255.93,255.85,20.0]
[1732387923034,23.776884,256.01,255.85,20.0]
[1732387923336,7.59968594,255.9,255.85,20.0]
[1732387923538,7.59968594,255.88,255.8,12.63952796]
[1732387925319,7.59968594,255.88,255.81,20.0]
[1732387925737,7.59968594,255.89,255.81,20.0]
[1732387926144,33.776884,256.01,255.81,27.59968594]
[1732387926446,7.59968594,255.9,255.81,27.59968594]
[1732387927425,7.59968594,255.88,255.81,20.0]
[1732387927829,30.39874376,255.97,255.81,20.0]
[1732387927830,7.59968594,255.86,255.81,20.0]
[1732387928243,7.59968594,255.86,255.8,12.63952796]
[1732387928453,7.59968594,255.84,255.8,7.73748377]
[1732387928640,7.59968594,255.84,255.78,22.646]
[1732387929646,7.59968594,255.84,255.79,20.0]
[1732387930443,7.59968594,255.82,255.79,20.0]
[1732387930656,7.59968594,255.82,255.76,4.85565442]
[1732387930826,7.59968594,255.8,255.74,4.90204419]
[1732387932036,7.59968594,255.78,255.72,15.9177]
[1732387932227,7.59968594,255.78,255.7,4.85565442]
[1732387934252,7.59968594,255.76,255.7,4.85565442]
[1732387936743,23.776884,255.83,255.71,20.0]
[1732387936953,7.59968594,255.78,255.71,20.0]
[1732387939443,7.59968594,255.76,255.69,20.0]
[1732387943058,7.59968594,255.74,255.69,20.0]
[1732387943244,7.59968594,255.7,255.6,15.4945]
[1732387943445,7.59968594,255.7,255.62,7.59968594]
[1732387943662,7.59968594,255.7,255.6,15.4945]
[1732387943857,7.59968594,255.7,255.62,7.59968594]
[1732387944736,7.59968594,255.7,255.63,20.0]
[1732387944942,7.59968594,255.7,255.61,20.0]
[1732387946273,7.59968594,255.72,255.64,7.59968594]
[1732387946454,16.3441,255.77,255.64,7.59968594]
[1732387946455,7.59968594,255.74,255.64,7.59968594]
[1732387946642,7.59968594,255.74,255.65,20.0]
[1732387947266,7.59968594,255.74,255.65,27.59968594]
[1732387947468,7.59968594,255.73,255.64,4.85565442]
[1732387947651,7.59968594,255.73,255.65,20.0]
[1732387948045,7.59968594,255.71,255.65,20.0]
[1732387948557,7.59968594,255.71,255.63,20.0]
[1732387950371,7.59968594,255.73,255.65,20.0]
[1732387952173,7.59968594,255.73,255.64,7.59968594]
[1732387952371,7.59968594,255.73,255.65,20.0]
[1732387955676,7.59968594,255.73,255.64,7.59968594]
[1732387955875,6.5183,255.83,255.66,7.59968594]
[1732387956054,7.59968594,255.77,255.68,7.59968594]
[1732387957483,7.59968594,255.75,255.66,12.45534036]
[1732387958582,7.59968594,255.73,255.66,12.69764621]
[1732387959207,7.59968594,255.75,255.66,12.69764621]
[1732387963674,23.776884,255.82,255.69,7.59968594]
[1732387963991,7.59968594,255.76,255.69,7.59968594]
[1732387968568,7.59968594,255.76,255.67,27.59968594]
[1732387969964,23.776884,255.82,255.67,20.0]
[1732387969965,7.59968594,255.74,255.67,20.0]
[1732387972066,7.59968594,255.74,255.66,7.84199179]
[1732387972377,7.59968594,255.72,255.64,4.76944455]
[1732387973581,7.59968594,255.72,255.65,20.0]
[1732387974765,23.776884,255.82,255.65,20.0]
[1732387974766,7.59968594,255.74,255.65,20.0]
[1732387975078,7.59968594,255.74,255.65,29.62509897]
[1732387975484,23.776884,255.82,255.68,7.59968594]
[1732387975985,7.59968594,255.76,255.68,7.59968594]
[1732387977878,7.59968594,255.76,255.66,12.45534036]
[1732387982372,7.59968594,255.76,255.67,20.0]
[1732387984585,7.59968594,255.76,255.67,26.11148232]
[1732387985281,7.59968594,255.76,255.67,20.0]
[1732387985476,7.59968594,255.76,255.67,26.11148232]
[1732387985874,7.59968594,255.74,255.67,20.0]
[1732387987975,7.59968594,255.75,255.67,26.11148232]
[1732387988570,7.59968594,255.75,255.67,6.11148232]
[1732387989219,7.59968594,255.75,255.68,3.893]
[1732387989398,7.59968594,255.75,255.68,6.11148232]
[1732387989995,7.59968594,255.76,255.68,6.11148232]
[1732387990675,7.59968594,255.76,255.69,6.11148232]
[1732387990876,7.59968594,255.76,255.68,6.11148232]
[1732387991089,6.5183,255.83,255.68,6.11148232]
[1732387991293,7.59968594,255.76,255.69,6.11148232]
[1732387991471,7.59968594,255.76,255.68,6.11148232]
[1732387994419,6.5183,255.83,255.68,6.11148232]
[1732387994588,7.59968594,255.77,255.69,7.59968594]
[1732387995497,7.59968594,255.77,255.68,6.11148232]
[1732387995700,7.59968594,255.77,255.69,6.11148232]
[1732387997191,23.776884,255.82,255.69,6.11148232]
[1732387997390,7.59968594,255.76,255.69,6.11148232]
[1732387998185,6.5183,255.83,255.71,7.59968594]
[1732387998478,7.59968594,255.8,255.71,7.59968594]
[1732387998697,7.59968594,255.82,255.75,7.59968594]
[1732387999103,6.2477,255.9,255.75,7.59968594]
[1732387999410,7.59968594,255.83,255.75,7.59968594]
[1732388000185,7.59968594,255.83,255.75,13.71116826]
[1732388000495,7.59968594,255.83,255.75,7.59968594]
[1732388001510,7.59968594,255.83,255.75,13.71116826]
[1732388002605,7.59968594,255.83,255.75,7.59968594]
[1732388004187,7.59968594,255.83,255.75,15.4891561]
[1732388004507,6.2477,255.9,255.75,7.59968594]
[1732388004703,7.59968594,255.84,255.75,7.59968594]
[1732388008113,9.8452,255.91,255.77,7.59968594]
[1732388008313,7.59968594,255.84,255.78,20.0]
[1732388010310,7.59968594,255.85,255.78,20.0]
[1732388012507,7.59968594,255.84,255.78,20.0]
[1732388013291,7.59968594,255.85,255.78,20.0]
[1732388013491,7.59968594,255.85,255.77,23.30238594]
[1732388013693,7.59968594,255.85,255.78,20.0]
[1732388017318,9.8452,255.94,255.78,20.0]
[1732388017319,7.59968594,255.83,255.78,20.0]
[1732388018505,7.59968594,255.81,255.77,15.7027]
[1732388019718,19.8452,255.94,255.75,9.62509897]
[1732388019719,7.59968594,255.79,255.75,9.62509897]
[1732388020016,6.59968594,255.79,255.75,9.62509897]
[1732388020513,7.59968594,255.81,255.75,9.62509897]
[1732388024132,7.59968594,255.79,255.75,9.62509897]
[1732388024416,7.59968594,255.79,255.75,4.76944455]
[1732388024801,7.59968594,255.79,255.74,20.0]
[1732388028128,7.59968594,255.79,255.73,7.88713115]
[1732388028424,7.59968594,255.77,255.7,4.76944455]
[1732388028631,7.59968594,255.73,255.7,4.76944455]
[1732388028927,7.59968594,255.73,255.65,16.2759]
[1732388029718,7.59968594,255.71,255.65,16.2759]
[1732388030305,7.59968594,255.73,255.66,20.0]
[1732388033319,7.59968594,255.75,255.68,7.59968594]
[1732388033519,7.59968594,255.75,255.69,20.0]
[1732388036742,7.59968594,255.75,255.66,27.59968594]
[1732388037509,7.59968594,255.75,255.68,20.0]
[1732388037914,7.59968594,255.73,255.68,20.0]
[1732388038524,7.59968594,255.73,255.67,20.0]
[1732388039336,7.59968594,255.73,255.68,3.896]
[1732388039517,7.59968594,255.73,255.67,20.0]
[1732388040425,6.1967,255.8,255.68,23.776884]
[1732388040626,7.59968594,255.76,255.69,20.0]
[1732388040928,7.59968594,255.74,255.69,20.0]
[1732388041108,7.59968594,255.74,255.67,43.776884]
[1732388043034,6.1967,255.8,255.67,43.776884]
[1732388043331,7.59968594,255.76,255.67,43.776884]
[1732388045241,7.59968594,255.76,255.67,20.0]
[1732388045448,7.59968594,255.78,255.71,20.0]
[1732388045621,7.59968594,255.8,255.73,20.0]
[1732388046118,9.8452,255.85,255.73,20.0]
[1732388046314,7.59968594,255.8,255.73,20.0]
[1732388046544,7.59968594,255.8,255.72,7.59968594]
[1732388049421,7.59968594,255.8,255.73,3.896]
[1732388049623,7.59968594,255.8,255.72,7.59968594]
[1732388050431,7.59968594,255.8,255.72,15.21202038]
[1732388050739,7.59968594,255.8,255.73,20.0]
[1732388050955,7.59968594,255.8,255.73,27.59968594]
[1732388051440,7.59968594,255.84,255.76,7.59968594]
[1732388051645,7.59968594,255.85,255.77,7.59968594]
[1732388051943,9.8452,255.9,255.78,7.59968594]
[1732388052151,9.8452,255.96,255.79,7.59968594]
[1732388052318,7.59968594,255.87,255.8,20.0]
[1732388053324,7.59968594,255.87,255.8,27.59968594]
[1732388053645,7.59968594,255.86,255.8,20.0]
[1732388054262,7.59968594,255.86,255.79,20.0]
[1732388054729,9.8452,255.96,255.77,7.59968594]
[1732388054730,23.776884,255.95,255.77,7.59968594]
[1732388054932,7.59968594,255.84,255.77,7.59968594]
[1732388055347,7.59968594,255.85,255.78,7.59968594]
[1732388055549,7.59968594,255.86,255.79,7.59968594]
[1732388056135,7.59968594,255.86,255.81,20.0]
[1732388061054,9.8452,255.96,255.83,20.0]
[1732388061242,7.59968594,255.89,255.85,20.0]
[1732388061751,7.59968594,255.91,255.85,20.0]
[1732388061957,7.59968594,255.91,255.87,20.0]
[1732388068145,7.59968594,255.91,255.89,20.0]
[1732388068662,7.59968594,255.91,255.87,20.0]
[1732388069142,7.59968594,255.91,255.89,20.0]
[1732388069863,7.59968594,255.91,255.86,20.0]
[1732388072253,26.2715,256.04,255.86,20.0]
[1732388072254,7.59968594,255.92,255.86,20.0]
[1732388073839,16.2715,256.04,255.89,23.776884]
[1732388074040,7.59968594,255.96,255.9,20.0]
[1732388076164,7.59968594,255.94,255.9,20.0]
[1732388079771,7.59968594,255.94,255.87,20.0]
[1732388097295,23.776884,256.03,255.88,7.59968594]
[1732388097589,7.59968594,255.96,255.87,20.0]
[1732388097786,7.59968594,255.96,255.87,27.59968594]
[1732388098473,7.59968594,255.96,255.87,32.36913049]
[1732388101266,7.59968594,255.97,255.87,32.36913049]
[1732388102470,7.59968594,255.97,255.89,27.59968594]
[1732388102675,7.59968594,255.97,255.89,20.0]
[1732388103176,7.59968594,255.97,255.88,20.0]
[1732388103575,16.2715,256.04,255.88,20.0]
[1732388103576,7.59968594,255.96,255.88,20.0]
[1732388104298,23.776884,256.03,255.88,20.0]
[1732388104484,7.59968594,255.96,255.88,20.0]
[1732388106392,7.59968594,255.96,255.89,7.59968594]
[1732388106594,7.59968594,255.96,255.9,20.0]
[1732388107682,7.59968594,255.96,255.88,20.0]
[1732388108775,7.59968594,255.96,255.88,26.11148232]
[1732388108975,7.59968594,255.96,255.88,20.0]
[1732388109386,7.59968594,255.96,255.88,26.11148232]
[1732388110195,7.59968594,255.95,255.88,26.11148232]
[1732388110398,7.59968594,255.93,255.88,26.11148232]
[1732388110579,7.59968594,255.93,255.88,20.0]
[1732388110778,7.59968594,255.89,255.86,13.77719553]
[1732388110972,30.39874376,255.97,255.81,21.79348232]
[1732388110973,7.59968594,255.87,255.81,21.79348232]
[1732388111178,7.59968594,255.87,255.81,23.39472371]
[1732388111399,7.59968594,255.84,255.81,13.82420603]
[1732388111604,7.59968594,255.84,255.81,7.71272371]
[1732388111784,7.59968594,255.84,255.8,4.76944455]
[1732388112285,7.59968594,255.84,255.8,24.76944455]
[1732388113489,7.59968594,255.84,255.8,32.71286412]
[1732388114391,7.59968594,255.86,255.81,20.0]
[1732388128220,7.59968594,255.91,255.83,20.0]
[1732388129011,23.776884,255.94,255.83,20.0]
[1732388129196,7.59968594,255.9,255.83,20.0]
[1732388130396,7.59968594,255.88,255.83,20.0]
[1732388132523,7.59968594,255.9,255.83,20.0]
[1732388136297,7.59968594,255.88,255.82,20.0]
[1732388136511,7.59968594,255.88,255.81,30.96713674]
[1732388137295,7.59968594,255.88,255.83,20.0]
[1732388137902,7.59968594,255.88,255.82,20.0]
[1732388138103,7.59968594,255.88,255.82,26.11148232]
[1732388141302,7.59968594,255.88,255.82,20.0]
[1732388141505,7.59968594,255.88,255.82,26.11148232]
[1732388141707,7.59968594,255.91,255.82,33.71116826]
[1732388145028,7.59968594,255.91,255.83,3.896]
[1732388145330,7.59968594,255.91,255.82,33.71116826]
[1732388146721,7.59968594,255.89,255.82,33.71116826]
[1732388150737,7.59968594,255.87,255.82,26.11148232]
[1732388150927,7.59968594,255.87,255.82,20.0]
[1732388152527,7.59968594,255.89,255.82,20.0]
[1732388153731,7.59968594,255.89,255.82,26.11148232]
[1732388155032,7.59968594,255.89,255.82,20.0]
[1732388158328,7.59968594,255.89,255.82,26.11148232]
[1732388162332,7.59968594,255.89,255.83,6.11148232]
[1732388162733,7.59968594,255.89,255.84,20.0]
[1732388167841,7.59968594,255.87,255.84,20.0]
[1732388168442,7.59968594,255.87,255.84,6.11148232]
[1732388168942,7.59968594,255.85,255.83,6.11148232]
[1732388169141,7.59968594,255.85,255.82,6.11148232]
[1732388169380,10.0,255.96,255.82,6.11148232]
[1732388169381,7.59968594,255.83,255.82,6.11148232]
[1732388172337,23.776884,255.91,255.82,6.11148232]
[1732388172338,7.59968594,255.87,255.82,6.11148232]
[1732388172739,6.0475,255.98,255.83,6.11148232]
[1732388172919,7.59968594,255.88,255.83,6.11148232]
[1732388174133,7.59968594,255.86,255.83,6.11148232]
[1732388175340,23.776884,255.96,255.83,6.11148232]
[1732388175543,7.59968594,255.88,255.84,6.11148232]
[1732388175746,7.59968594,255.9,255.85,20.0]
[1732388175920,7.59968594,255.92,255.85,20.0]
[1732388176122,7.59968594,255.92,255.85,26.11148232]
[1732388176871,7.59968594,255.92,255.86,6.11148232]
[1732388179242,7.59968594,255.92,255.85,6.11148232]
[1732388179551,7.59968594,255.92,255.86,6.11148232]
[1732388179937,7.59968594,255.9,255.86,6.11148232]
[1732388180260,7.59968594,255.9,255.85,6.11148232]
[1732388181129,7.59968594,255.86,255.85,6.11148232]
[1732388181326,7.59968594,255.86,255.84,6.11148232]
[1732388182044,7.59968594,255.86,255.83,22.29038232]
[1732388182243,7.59968594,255.86,255.84,6.11148232]
[1732388183322,30.39874376,255.97,255.84,6.11148232]
[1732388183527,7.59968594,255.87,255.84,6.11148232]
[1732388183746,7.59968594,255.87,255.83,6.11148232]
[1732388184441,19.8452,255.99,255.83,6.11148232]
[1732388184442,9.8452,255.99,255.83,6.11148232]
[1732388184622,7.59968594,255.89,255.84,6.11148232]
[1732388185121,7.59968594,255.89,255.85,6.11148232]
[1732388185325,7.59968594,255.89,255.84,6.11148232]
[1732388185635,7.59968594,255.87,255.84,6.11148232]
[1732388186036,23.776884,255.96,255.84,6.11148232]
[1732388186231,7.59968594,255.87,255.84,6.11148232]
[1732388187049,7.59968594,255.87,255.85,6.11148232]
[1732388188742,7.59968594,255.87,255.84,6.11148232]
[1732388188941,7.59968594,255.87,255.83,6.11148232]
[1732388189549,7.59968594,255.87,255.84,6.11148232]
[1732388190550,7.59968594,255.87,255.81,20.0]
[1732388193048,21.06540841,255.96,255.79,15.35743972]
[1732388193049,7.59968594,255.85,255.79,7.75775378]
[1732388193250,7.59968594,255.85,255.76,13.71116826]
[1732388194053,7.59968594,255.85,255.76,7.59968594]
[1732388194556,23.776884,255.94,255.76,7.59968594]
[1732388194851,7.59968594,255.84,255.76,7.59968594]
[1732388195949,7.59968594,255.84,255.78,24.2979879]
[1732388199137,37.71530841,255.96,255.78,31.89767384]
[1732388199138,6.6499,255.96,255.78,31.89767384]
[1732388199375,7.59968594,255.91,255.82,7.59968594]
[1732388199648,7.59968594,255.91,255.83,4.76944455]
[1732388201045,7.59968594,255.89,255.83,4.76944455]
[1732388203763,7.59968594,255.89,255.83,10.88092687]
[1732388204672,23.776884,255.98,255.84,13.71116826]
[1732388204865,7.59968594,255.92,255.84,13.71116826]
[1732388206464,7.59968594,255.92,255.84,7.59968594]
[1732388207463,7.59968594,255.92,255.84,13.71116826]
[1732388209949,7.59968594,255.92,255.84,6.11148232]
[1732388210162,7.59968594,255.92,255.85,16.2584]
[1732388210570,7.59968594,255.95,255.88,7.59968594]
[1732388210874,7.59968594,255.88,255.85,16.2584]
[1732388211172,7.59968594,255.86,255.85,16.2584]
[1732388213865,7.59968594,255.86,255.85,24.06370173]
[1732388214977,7.59968594,255.86,255.85,7.80530173]
[1732388215175,7.59968594,255.86,255.83,6.11148232]
[1732388216551,7.59968594,255.86,255.83,14.0536531]
[1732388217561,7.59968594,255.87,255.83,7.94217078]
[1732388217864,7.59968594,255.87,255.82,6.6248]
[1732388218058,30.39874376,255.97,255.83,23.776884]
[1732388218255,7.59968594,255.89,255.83,23.776884]
[1732388218467,7.59968594,255.91,255.83,23.776884]
[1732388219272,7.59968594,255.91,255.83,29.88836632]
[1732388219952,7.59968594,255.91,255.83,23.776884]
[1732388221174,7.59968594,255.92,255.83,31.37656994]
[1732388221567,7.59968594,255.9,255.83,23.776884]
[1732388223271,7.59968594,255.88,255.83,3.896]
[1732388223476,7.59968594,255.88,255.82,14.46175604]
[1732388223785,7.59968594,255.9,255.82,14.46175604]
[1732388224864,33.776884,256.04,255.83,23.776884]
[1732388225072,7.59968594,255.9,255.83,23.776884]
[1732388226056,7.59968594,255.9,255.83,27.672884]
[1732388226275,7.59968594,255.9,255.83,23.776884]
[1732388227578,7.59968594,255.9,255.85,6.11148232]
[1732388227780,7.59968594,255.9,255.84,6.11148232]
[1732388232783,7.59968594,255.9,255.85,6.11148232]
[1732388233488,7.59968594,255.9,255.84,6.11148232]
[1732388233664,23.776884,256.04,255.84,6.11148232]
[1732388233973,7.59968594,255.9,255.85,6.11148232]
[1732388234285,7.59968594,255.9,255.84,6.11148232]
[1732388234585,7.59968594,255.88,255.84,6.11148232]
[1732388236572,7.59968594,255.88,255.83,6.11148232]
[1732388238171,7.59968594,255.86,255.83,6.11148232]
[1732388238489,7.59968594,255.86,255.82,20.43526927]
[1732388238879,7.59968594,255.86,255.83,6.11148232]
[1732388239274,30.39874376,255.97,255.82,14.32378695]
[1732388239275,7.59968594,255.88,255.82,20.43526927]
[1732388240365,7.59968594,255.88,255.82,14.32378695]
[1732388240767,23.776884,255.96,255.82,21.92347289]
[1732388240988,7.59968594,255.89,255.82,20.43526927]
[1732388247105,7.59968594,255.87,255.82,20.43526927]
[1732388247880,7.59968594,255.87,255.83,6.11148232]
[1732388249095,7.59968594,255.87,255.84,3.896]
[1732388249300,7.59968594,255.87,255.83,6.11148232]
[1732388250396,7.59968594,255.87,255.84,6.11148232]
[1732388252390,7.59968594,255.87,255.85,6.11148232]
[1732388256007,7.59968594,255.87,255.84,6.11148232]
[1732388256190,7.59968594,255.85,255.84,6.11148232]
[1732388256385,7.59968594,255.85,255.83,6.11148232]
[1732388257188,7.59968594,255.85,255.81,20.02016687]
[1732388257189,7.59968594,255.85,255.82,6.11148232]
[1732388257799,7.59968594,255.85,255.83,6.11148232]
[1732388258787,7.59968594,255.85,255.82,6.11148232]
[1732388261411,7.59968594,255.85,255.81,6.11148232]
[1732388261617,7.59968594,255.83,255.81,6.11148232]
[1732388261790,7.59968594,255.83,255.8,6.11148232]
[1732388262198,7.59968594,255.83,255.79,30.27059347]
[1732388262792,7.59968594,255.85,255.8,6.11148232]
[1732388264021,7.59968594,255.85,255.81,6.11148232]
[1732388264197,7.59968594,255.85,255.8,6.11148232]
[1732388264915,7.59968594,255.85,255.81,6.11148232]
[1732388267500,7.59968594,255.85,255.8,6.11148232]
[1732388268199,7.59968594,255.85,255.81,6.11148232]
[1732388269215,7.59968594,255.85,255.8,6.11148232]
[1732388269901,7.59968594,255.83,255.8,6.11148232]
[1732388273922,7.59968594,255.83,255.81,6.11148232]
[1732388277729,7.59968594,255.83,255.79,28.48136464]
[1732388277730,5.69769794,255.83,255.79,22.36988232]
[1732388279204,5.69769794,255.83,255.79,30.28134519]